[Event "Titled Tuesday Blitz March 22 Early 2022"]
[White "volunteers1998"]
[Black "Fiol, Fabrice"]
[BlackFideId "611670"]
[WhiteElo "2240"]
[BlackElo "2469"]
[Result "0-1"]
[Round "06"]
[TimeControl "180+1"]
[Date "2022.03.22"]
[WhiteClock "0:00:01"]
[BlackClock "0:00:22"]

1. e4 {[%clk 0:03:00]}  c5 {[%clk 0:02:59]} 2. Nf3 {[%clk 0:03:00]}  e6 {[%clk 0:02:59]} 3. d4 {[%clk 0:02:58]}  cxd4 {[%clk 0:02:59]} 4. Nxd4 {[%clk 0:02:59]}  a6 {[%clk 0:02:59]} 5. Nc3 {[%clk 0:02:56]}  b5 {[%clk 0:02:59]} 6. Be2 {[%clk 0:02:53]}  Bb7 {[%clk 0:02:58]} 7. a3 {[%clk 0:02:51]}  Qc7 {[%clk 0:02:56]} 8. Be3 {[%clk 0:02:46]}  Nf6 {[%clk 0:02:56]} 9. f3 {[%clk 0:02:43]}  d5 {[%clk 0:02:54]} 10. exd5 {[%clk 0:02:41]}  Bxd5 {[%clk 0:02:55]} 11. Nxd5 {[%clk 0:02:37]}  Nxd5 {[%clk 0:02:55]} 12. Bf2 {[%clk 0:02:35]}  Bd6 {[%clk 0:02:52]} 13. Qd2 {[%clk 0:02:30]}  O-O {[%clk 0:02:49]} 14. g3 {[%clk 0:02:22]}  Nd7 {[%clk 0:02:49]} 15. O-O {[%clk 0:02:18]}  Ne5 {[%clk 0:02:43]} 16. Rfd1 {[%clk 0:02:10]}  Rfd8 {[%clk 0:02:40]} 17. Rac1 {[%clk 0:02:01]}  Rac8 {[%clk 0:02:35]} 18. c3 {[%clk 0:01:58]}  Nc4 {[%clk 0:02:33]} 19. Bxc4 {[%clk 0:01:56]}  Qxc4 {[%clk 0:02:34]} 20. Qe2 {[%clk 0:01:50]}  g6 {[%clk 0:02:28]} 21. Qxc4 {[%clk 0:01:47]}  Rxc4 {[%clk 0:02:29]} 22. Ne2 {[%clk 0:01:36]}  Be7 {[%clk 0:02:22]} 23. Rd2 {[%clk 0:01:29]}  Rdc8 {[%clk 0:02:18]} 24. Rcd1 {[%clk 0:01:25]}  h5 {[%clk 0:02:13]} 25. Kg2 {[%clk 0:01:22]}  a5 {[%clk 0:02:06]} 26. f4 {[%clk 0:01:15]}  b4 {[%clk 0:01:53]} 27. axb4 {[%clk 0:01:13]}  axb4 {[%clk 0:01:54]} 28. cxb4 {[%clk 0:01:09]}  Rxb4 {[%clk 0:01:50]} 29. Bd4 {[%clk 0:01:06]}  Rcc4 {[%clk 0:01:25]} 30. Kf3 {[%clk 0:00:53]}  Rb3+ {[%clk 0:01:24]} 31. Rd3 {[%clk 0:00:51]}  Rb7 {[%clk 0:01:22]} 32. R1d2 {[%clk 0:00:40]}  g5 {[%clk 0:01:16]} 33. Be5 {[%clk 0:00:35]}  f6 {[%clk 0:01:12]} 34. Bd4 {[%clk 0:00:33]}  g4+ {[%clk 0:01:10]} 35. Kg2 {[%clk 0:00:31]}  Kf7 {[%clk 0:01:10]} 36. Nc3 {[%clk 0:00:23]}  Nb4 {[%clk 0:00:59]} 37. Re3 {[%clk 0:00:21]}  Nc6 {[%clk 0:00:52]} 38. Ne2 {[%clk 0:00:18]}  Rcb4 {[%clk 0:00:42]} 39. Bc3 {[%clk 0:00:16]}  Rc4 {[%clk 0:00:41]} 40. Bd4 {[%clk 0:00:15]}  Nb4 {[%clk 0:00:41]} 41. Nc3 {[%clk 0:00:12]}  Rb8 {[%clk 0:00:35]} 42. Re1 {[%clk 0:00:10]}  Rd8 {[%clk 0:00:33]} 43. Red1 {[%clk 0:00:07]}  Nc6 {[%clk 0:00:31]} 44. Bf2 {[%clk 0:00:05]}  Rb8 {[%clk 0:00:30]} 45. Re2 {[%clk 0:00:03]}  Bb4 {[%clk 0:00:26]} 46. Be1 {[%clk 0:00:02]}  Nd4 {[%clk 0:00:23]} 47. Red2 {[%clk 0:00:02]}  Nf3 {[%clk 0:00:22]} 48. Rd7+ {[%clk 0:00:01]}  Be7 {[%clk 0:00:22]} 0-1


[Site "https://www.chess.com"]

[Event "Titled Tuesday Blitz March 22 Early 2022"]
[White "Akobian, Varuzhan"]
[Black "Orlov, Georgi"]
[WhiteFideId "13300580"]
[BlackFideId "2011271"]
[WhiteElo "2634"]
[BlackElo "2548"]
[Result "1-0"]
[Round "07"]
[TimeControl "180+1"]
[Date "2022.03.22"]
[WhiteClock "0:00:14"]
[BlackClock "0:00:03"]

1. d4 {[%clk 0:02:59]}  Nf6 {[%clk 0:02:59]} 2. c4 {[%clk 0:02:59]}  Nc6 {[%clk 0:02:59]} 3. Nc3 {[%clk 0:02:59]}  e5 {[%clk 0:02:58]} 4. d5 {[%clk 0:02:59]}  Ne7 {[%clk 0:02:58]} 5. e4 {[%clk 0:02:57]}  Ng6 {[%clk 0:02:55]} 6. g3 {[%clk 0:02:50]}  Bb4 {[%clk 0:02:54]} 7. Bg2 {[%clk 0:02:49]}  Bxc3+ {[%clk 0:02:54]} 8. bxc3 {[%clk 0:02:48]}  d6 {[%clk 0:02:54]} 9. Ne2 {[%clk 0:02:47]}  Nd7 {[%clk 0:02:51]} 10. Be3 {[%clk 0:02:45]}  b6 {[%clk 0:02:51]} 11. h4 {[%clk 0:02:38]}  h5 {[%clk 0:02:46]} 12. O-O {[%clk 0:02:24]}  Nc5 {[%clk 0:02:44]} 13. Bxc5 {[%clk 0:02:23]}  bxc5 {[%clk 0:02:43]} 14. Nc1 {[%clk 0:02:22]}  Bg4 {[%clk 0:02:33]} 15. Bf3 {[%clk 0:02:17]}  Bxf3 {[%clk 0:02:27]} 16. Qxf3 {[%clk 0:02:16]}  Qd7 {[%clk 0:02:27]} 17. Kg2 {[%clk 0:02:11]}  Ne7 {[%clk 0:02:22]} 18. Nb3 {[%clk 0:01:58]}  Rh6 {[%clk 0:02:09]} 19. Nd2 {[%clk 0:01:56]}  Ng8 {[%clk 0:02:02]} 20. Rab1 {[%clk 0:01:54]}  Nf6 {[%clk 0:02:02]} 21. Rb7 {[%clk 0:01:40]}  Ng4 {[%clk 0:02:00]} 22. Qe2 {[%clk 0:01:40]}  Qa4 {[%clk 0:01:33]} 23. Rxc7 {[%clk 0:01:32]}  Qxa2 {[%clk 0:01:30]} 24. Rb1 {[%clk 0:01:26]}  Qc2 {[%clk 0:00:52]} 25. f3 {[%clk 0:01:15]}  Nf6 {[%clk 0:00:47]} 26. Rbb7 {[%clk 0:01:00]}  Rg6 {[%clk 0:00:42]} 27. Rxa7 {[%clk 0:00:52]}  Rxa7 {[%clk 0:00:33]} 28. Rxa7 {[%clk 0:00:52]}  Qxc3 {[%clk 0:00:34]} 29. Nf1 {[%clk 0:00:44]}  Kf8 {[%clk 0:00:31]} 30. Ra8+ {[%clk 0:00:43]}  Ke7 {[%clk 0:00:29]} 31. Ne3 {[%clk 0:00:41]}  Nd7 {[%clk 0:00:24]} 32. Ra7 {[%clk 0:00:38]}  Rf6 {[%clk 0:00:20]} 33. Nf5+ {[%clk 0:00:32]}  Rxf5 {[%clk 0:00:20]} 34. exf5 {[%clk 0:00:32]}  Qc1 {[%clk 0:00:15]} 35. Qa2 {[%clk 0:00:26]}  Qe3 {[%clk 0:00:09]} 36. Qc2 {[%clk 0:00:19]}  Qd4 {[%clk 0:00:07]} 37. f6+ {[%clk 0:00:18]}  Kxf6 {[%clk 0:00:06]} 38. Rxd7 {[%clk 0:00:18]}  e4 {[%clk 0:00:06]} 39. Qxe4 {[%clk 0:00:16]}  Qd2+ {[%clk 0:00:04]} 40. Kh3 {[%clk 0:00:16]}  Qd1 {[%clk 0:00:04]} 41. Qf4+ {[%clk 0:00:14]}  Kg6 {[%clk 0:00:04]} 42. Qxf7+ {[%clk 0:00:14]}  Kh6 {[%clk 0:00:03]} 43. Qxg7# {[%clk 0:00:14]} 1-0


[Site "https://www.chess.com"]

[Event "Titled Tuesday Blitz March 22 Early 2022"]
[White "Atakhan, Abtin"]
[Black "Rodrigue-Lemieux, Shawn"]
[WhiteFideId "22502203"]
[BlackFideId "2620049"]
[WhiteElo "2119"]
[BlackElo "1763"]
[Result "1-0"]
[Round "07"]
[TimeControl "180+1"]
[Date "2022.03.22"]
[WhiteClock "0:00:50"]
[BlackClock "0:00:32"]

1. c4 {[%clk 0:03:00]}  Nf6 {[%clk 0:02:58]} 2. g3 {[%clk 0:03:00]}  e6 {[%clk 0:02:59]} 3. Bg2 {[%clk 0:02:59]}  d5 {[%clk 0:03:00]} 4. Nf3 {[%clk 0:03:00]}  Be7 {[%clk 0:03:00]} 5. O-O {[%clk 0:03:00]}  O-O {[%clk 0:03:01]} 6. b3 {[%clk 0:03:01]}  b6 {[%clk 0:03:01]} 7. Bb2 {[%clk 0:03:01]}  Bb7 {[%clk 0:03:02]} 8. e3 {[%clk 0:03:02]}  c5 {[%clk 0:03:01]} 9. Nc3 {[%clk 0:03:01]}  Nc6 {[%clk 0:03:02]} 10. cxd5 {[%clk 0:03:01]}  Nxd5 {[%clk 0:03:03]} 11. Nxd5 {[%clk 0:03:00]}  Qxd5 {[%clk 0:03:04]} 12. d4 {[%clk 0:02:59]}  Rad8 {[%clk 0:03:04]} 13. Ne5 {[%clk 0:02:59]}  Qd6 {[%clk 0:03:05]} 14. dxc5 {[%clk 0:02:57]}  Qxc5 {[%clk 0:03:06]} 15. Nd7 {[%clk 0:02:57]}  Qg5 {[%clk 0:03:06]} 16. h4 {[%clk 0:02:56]}  Qf5 {[%clk 0:03:07]} 17. e4 {[%clk 0:02:53]}  Qg6 {[%clk 0:03:05]} 18. Nxf8 {[%clk 0:02:51]}  Bxf8 {[%clk 0:02:58]} 19. Qc1 {[%clk 0:02:40]}  Bc5 {[%clk 0:02:52]} 20. Qf4 {[%clk 0:02:34]}  e5 {[%clk 0:02:00]} 21. Bxe5 {[%clk 0:02:22]}  Nxe5 {[%clk 0:01:43]} 22. Qxe5 {[%clk 0:02:23]}  h6 {[%clk 0:01:37]} 23. Rad1 {[%clk 0:02:17]}  Rc8 {[%clk 0:01:32]} 24. Bh3 {[%clk 0:01:58]}  Rf8 {[%clk 0:01:26]} 25. Bf5 {[%clk 0:01:55]}  Qc6 {[%clk 0:01:26]} 26. Rd7 {[%clk 0:01:45]}  g6 {[%clk 0:01:12]} 27. Be6 {[%clk 0:01:29]}  Bc8 {[%clk 0:01:02]} 28. Bxf7+ {[%clk 0:01:25]}  Rxf7 {[%clk 0:00:57]} 29. Qe8+ {[%clk 0:01:25]}  Rf8 {[%clk 0:00:56]} 30. Rg7+ {[%clk 0:01:23]}  Kxg7 {[%clk 0:00:54]} 31. Qxc6 {[%clk 0:01:24]}  Bh3 {[%clk 0:00:52]} 32. Qc7+ {[%clk 0:01:16]}  Rf7 {[%clk 0:00:48]} 33. Qe5+ {[%clk 0:01:16]}  Kh7 {[%clk 0:00:48]} 34. Rc1 {[%clk 0:01:07]}  h5 {[%clk 0:00:38]} 35. Rxc5 {[%clk 0:01:03]}  bxc5 {[%clk 0:00:39]} 36. Qxc5 {[%clk 0:00:59]}  Bg4 {[%clk 0:00:38]} 37. f4 {[%clk 0:00:58]}  Rd7 {[%clk 0:00:38]} 38. Kf2 {[%clk 0:00:55]}  Kg8 {[%clk 0:00:35]} 39. f5 {[%clk 0:00:51]}  gxf5 {[%clk 0:00:34]} 40. Qc8+ {[%clk 0:00:50]}  Rd8 {[%clk 0:00:32]} 41. Qxd8+ {[%clk 0:00:50]} 1-0


[Site "https://www.chess.com"]

[Event "Titled Tuesday Blitz March 22 Early 2022"]
[White "Baker, Chris W"]
[Black "Ladan, Nicholas"]
[WhiteFideId "401676"]
[BlackFideId "30918855"]
[WhiteElo "2284"]
[BlackElo "2167"]
[Result "1-0"]
[Round "07"]
[TimeControl "180+1"]
[Date "2022.03.22"]
[WhiteClock "0:00:14"]
[BlackClock "0:00:09"]

1. c4 {[%clk 0:03:00]}  Nf6 {[%clk 0:02:59]} 2. Nf3 {[%clk 0:03:00]}  c6 {[%clk 0:02:58]} 3. g3 {[%clk 0:03:00]}  d5 {[%clk 0:02:58]} 4. Bg2 {[%clk 0:02:58]}  Bg4 {[%clk 0:02:58]} 5. O-O {[%clk 0:02:57]}  Nbd7 {[%clk 0:02:56]} 6. d3 {[%clk 0:02:49]}  e6 {[%clk 0:02:55]} 7. Nbd2 {[%clk 0:02:47]}  Bd6 {[%clk 0:02:52]} 8. b3 {[%clk 0:02:47]}  a5 {[%clk 0:02:51]} 9. Bb2 {[%clk 0:02:46]}  O-O {[%clk 0:02:47]} 10. h3 {[%clk 0:02:41]}  Bh5 {[%clk 0:02:46]} 11. cxd5 {[%clk 0:02:36]}  exd5 {[%clk 0:02:43]} 12. Nd4 {[%clk 0:02:34]}  Re8 {[%clk 0:02:38]} 13. Re1 {[%clk 0:02:32]}  Ne5 {[%clk 0:02:29]} 14. Qc2 {[%clk 0:02:20]}  Qb8 {[%clk 0:02:03]} 15. Nf5 {[%clk 0:02:15]}  Bf8 {[%clk 0:01:59]} 16. f4 {[%clk 0:02:07]}  Ned7 {[%clk 0:01:55]} 17. e4 {[%clk 0:02:06]}  Bg6 {[%clk 0:01:49]} 18. Kh2 {[%clk 0:01:45]}  Bxf5 {[%clk 0:01:31]} 19. exf5 {[%clk 0:01:45]}  Bd6 {[%clk 0:01:29]} 20. Nf3 {[%clk 0:01:37]}  h5 {[%clk 0:01:24]} 21. Rxe8+ {[%clk 0:01:27]}  Nxe8 {[%clk 0:01:15]} 22. Re1 {[%clk 0:01:24]}  f6 {[%clk 0:01:00]} 23. Re6 {[%clk 0:01:17]}  Nf8 {[%clk 0:00:54]} 24. Re2 {[%clk 0:01:14]}  Nc7 {[%clk 0:00:48]} 25. Qd1 {[%clk 0:01:11]}  Na6 {[%clk 0:00:47]} 26. Qd2 {[%clk 0:00:59]}  a4 {[%clk 0:00:44]} 27. Nd4 {[%clk 0:00:58]}  axb3 {[%clk 0:00:38]} 28. axb3 {[%clk 0:00:56]}  Nc5 {[%clk 0:00:39]} 29. b4 {[%clk 0:00:45]}  Na6 {[%clk 0:00:32]} 30. Bc3 {[%clk 0:00:40]}  Nc7 {[%clk 0:00:31]} 31. Qe1 {[%clk 0:00:39]}  Ra3 {[%clk 0:00:24]} 32. Nc2 {[%clk 0:00:30]}  Ra2 {[%clk 0:00:23]} 33. Nd4 {[%clk 0:00:29]}  Rxe2 {[%clk 0:00:22]} 34. Qxe2 {[%clk 0:00:29]}  Qe8 {[%clk 0:00:21]} 35. Qxe8 {[%clk 0:00:28]}  Nxe8 {[%clk 0:00:22]} 36. h4 {[%clk 0:00:28]}  Kf7 {[%clk 0:00:20]} 37. Bf3 {[%clk 0:00:28]}  g6 {[%clk 0:00:18]} 38. fxg6+ {[%clk 0:00:28]}  Kxg6 {[%clk 0:00:19]} 39. f5+ {[%clk 0:00:28]}  Kg7 {[%clk 0:00:14]} 40. Bxh5 {[%clk 0:00:27]}  Nc7 {[%clk 0:00:14]} 41. Be2 {[%clk 0:00:25]}  Be5 {[%clk 0:00:15]} 42. Bf1 {[%clk 0:00:18]}  b6 {[%clk 0:00:11]} 43. Ne2 {[%clk 0:00:18]}  c5 {[%clk 0:00:11]} 44. Bxe5 {[%clk 0:00:17]}  fxe5 {[%clk 0:00:11]} 45. bxc5 {[%clk 0:00:17]}  bxc5 {[%clk 0:00:12]} 46. Bg2 {[%clk 0:00:17]}  Nd7 {[%clk 0:00:10]} 47. g4 {[%clk 0:00:16]}  c4 {[%clk 0:00:09]} 48. dxc4 {[%clk 0:00:16]}  dxc4 {[%clk 0:00:10]} 49. g5 {[%clk 0:00:16]}  Nb5 {[%clk 0:00:08]} 50. Bc6 {[%clk 0:00:14]}  Nd4 {[%clk 0:00:07]} 51. Nxd4 {[%clk 0:00:13]}  exd4 {[%clk 0:00:08]} 52. Bxd7 {[%clk 0:00:13]}  c3 {[%clk 0:00:08]} 53. f6+ {[%clk 0:00:13]}  Kf7 {[%clk 0:00:04]} 54. Bf5 {[%clk 0:00:14]}  d3 {[%clk 0:00:02]} 55. Bxd3 {[%clk 0:00:13]}  Kg8 {[%clk 0:00:02]} 56. Kg3 {[%clk 0:00:13]}  Kf8 {[%clk 0:00:03]} 57. Kf4 {[%clk 0:00:13]}  Kg8 {[%clk 0:00:04]} 58. Kf5 {[%clk 0:00:14]}  Kf8 {[%clk 0:00:05]} 59. g6 {[%clk 0:00:14]}  c2 {[%clk 0:00:05]} 60. g7+ {[%clk 0:00:14]}  Kf7 {[%clk 0:00:06]} 61. Bxc2 {[%clk 0:00:14]}  Kg8 {[%clk 0:00:06]} 62. Bb3+ {[%clk 0:00:14]}  Kh7 {[%clk 0:00:07]} 63. Ke6 {[%clk 0:00:14]}  Kh6 {[%clk 0:00:08]} 64. Kf7 {[%clk 0:00:14]}  Kh5 {[%clk 0:00:08]} 65. g8=Q {[%clk 0:00:14]}  Kh6 {[%clk 0:00:09]} 66. Qg6# {[%clk 0:00:14]} 1-0


[Site "https://www.chess.com"]

[Event "Titled Tuesday Blitz March 22 Early 2022"]
[White "Batsiashvili, Nino"]
[Black "Al-Tarboush, Ward"]
[WhiteFideId "13602993"]
[BlackFideId "7601450"]
[WhiteElo "2192"]
[BlackElo "2276"]
[Result "0-1"]
[Round "07"]
[TimeControl "180+1"]
[Date "2022.03.22"]
[WhiteClock "0:00:02"]
[BlackClock "0:00:14"]

1. d4 {[%clk 0:03:00]}  b6 {[%clk 0:03:00]} 2. c4 {[%clk 0:03:00]}  Bb7 {[%clk 0:03:00]} 3. Nf3 {[%clk 0:03:00]}  e6 {[%clk 0:02:59]} 4. g3 {[%clk 0:02:54]}  Bb4+ {[%clk 0:02:59]} 5. Nbd2 {[%clk 0:02:49]}  a5 {[%clk 0:03:00]} 6. Bg2 {[%clk 0:02:50]}  Nf6 {[%clk 0:03:00]} 7. O-O {[%clk 0:02:50]}  Bxd2 {[%clk 0:03:00]} 8. Qxd2 {[%clk 0:02:48]}  O-O {[%clk 0:03:01]} 9. b3 {[%clk 0:02:48]}  a4 {[%clk 0:03:01]} 10. Bb2 {[%clk 0:02:48]}  Nc6 {[%clk 0:02:58]} 11. Ne5 {[%clk 0:02:43]}  Qc8 {[%clk 0:02:51]} 12. d5 {[%clk 0:02:36]}  Nxe5 {[%clk 0:02:51]} 13. Bxe5 {[%clk 0:02:34]}  Ne8 {[%clk 0:02:49]} 14. b4 {[%clk 0:02:22]}  d6 {[%clk 0:02:48]} 15. Bc3 {[%clk 0:02:18]}  e5 {[%clk 0:02:46]} 16. a3 {[%clk 0:02:18]}  f5 {[%clk 0:02:42]} 17. f4 {[%clk 0:02:15]}  e4 {[%clk 0:02:40]} 18. Rfc1 {[%clk 0:02:06]}  Qd7 {[%clk 0:02:37]} 19. c5 {[%clk 0:02:01]}  dxc5 {[%clk 0:02:34]} 20. bxc5 {[%clk 0:02:02]}  Qxd5 {[%clk 0:02:32]} 21. Qxd5+ {[%clk 0:01:53]}  Bxd5 {[%clk 0:02:33]} 22. cxb6 {[%clk 0:01:52]}  cxb6 {[%clk 0:02:34]} 23. Bd4 {[%clk 0:01:46]}  Rb8 {[%clk 0:02:29]} 24. Rab1 {[%clk 0:01:45]}  Bb3 {[%clk 0:02:29]} 25. e3 {[%clk 0:01:41]}  Nd6 {[%clk 0:02:26]} 26. Rc6 {[%clk 0:01:39]}  Nb5 {[%clk 0:02:22]} 27. Be5 {[%clk 0:01:35]}  Rbc8 {[%clk 0:02:20]} 28. Rxb6 {[%clk 0:01:35]}  Nxa3 {[%clk 0:02:20]} 29. R6xb3 {[%clk 0:01:23]}  axb3 {[%clk 0:02:18]} 30. Rxb3 {[%clk 0:01:24]}  Nc4 {[%clk 0:02:14]} 31. Bd4 {[%clk 0:01:21]}  Nd2 {[%clk 0:02:13]} 32. Rb7 {[%clk 0:01:21]}  Rc1+ {[%clk 0:02:11]} 33. Kf2 {[%clk 0:01:19]}  Rfc8 {[%clk 0:02:06]} 34. Rxg7+ {[%clk 0:00:56]}  Kf8 {[%clk 0:02:05]} 35. Rb7 {[%clk 0:00:44]}  R8c2 {[%clk 0:01:57]} 36. Rb2 {[%clk 0:00:42]}  Nf3+ {[%clk 0:01:43]} 37. Rxc2 {[%clk 0:00:41]}  Rxc2+ {[%clk 0:01:44]} 38. Kf1 {[%clk 0:00:40]}  Rc1+ {[%clk 0:01:36]} 39. Ke2 {[%clk 0:00:35]}  Rc2+ {[%clk 0:01:36]} 40. Kf1 {[%clk 0:00:32]}  Nxh2+ {[%clk 0:01:35]} 41. Kg1 {[%clk 0:00:29]}  Nf3+ {[%clk 0:01:34]} 42. Kf1 {[%clk 0:00:27]}  Nxd4 {[%clk 0:01:32]} 43. exd4 {[%clk 0:00:28]}  Rd2 {[%clk 0:01:33]} 44. Bh3 {[%clk 0:00:25]}  e3 {[%clk 0:01:25]} 45. Bxf5 {[%clk 0:00:24]}  h5 {[%clk 0:01:24]} 46. Bg6 {[%clk 0:00:22]}  Rf2+ {[%clk 0:01:20]} 47. Ke1 {[%clk 0:00:21]}  Rh2 {[%clk 0:01:20]} 48. d5 {[%clk 0:00:19]}  Ke7 {[%clk 0:01:20]} 49. f5 {[%clk 0:00:17]}  Kf6 {[%clk 0:01:09]} 50. d6 {[%clk 0:00:17]}  Rd2 {[%clk 0:01:03]} 51. Bxh5 {[%clk 0:00:17]}  Kxf5 {[%clk 0:01:01]} 52. Bf3 {[%clk 0:00:17]}  Ke6 {[%clk 0:00:50]} 53. g4 {[%clk 0:00:13]}  Kxd6 {[%clk 0:00:49]} 54. g5 {[%clk 0:00:14]}  Ke5 {[%clk 0:00:49]} 55. g6 {[%clk 0:00:14]}  Kf6 {[%clk 0:00:41]} 56. Be4 {[%clk 0:00:14]}  Rh2 {[%clk 0:00:37]} 57. Bd3 {[%clk 0:00:13]}  Ke5 {[%clk 0:00:32]} 58. Bf1 {[%clk 0:00:05]}  Rh6 {[%clk 0:00:23]} 59. Bd3 {[%clk 0:00:02]}  Kd4 {[%clk 0:00:14]} 0-1


[Site "https://www.chess.com"]

[Event "Titled Tuesday Blitz March 22 Early 2022"]
[White "Bintang, Rasyid A. Hidayat"]
[Black "Stanisz, Patryk"]
[WhiteFideId "7105355"]
[BlackFideId "1123106"]
[WhiteElo "2377"]
[BlackElo "1876"]
[Result "1-0"]
[Round "07"]
[TimeControl "180+1"]
[Date "2022.03.22"]
[WhiteClock "0:00:44"]
[BlackClock "0:00:05"]

1. d4 {[%clk 0:03:00]}  Nf6 {[%clk 0:02:54]} 2. Bf4 {[%clk 0:03:00]}  d5 {[%clk 0:02:53]} 3. e3 {[%clk 0:03:00]}  c5 {[%clk 0:02:53]} 4. Nd2 {[%clk 0:03:00]}  Nc6 {[%clk 0:02:53]} 5. Ngf3 {[%clk 0:03:00]}  e6 {[%clk 0:02:50]} 6. c3 {[%clk 0:03:00]}  cxd4 {[%clk 0:02:48]} 7. exd4 {[%clk 0:03:00]}  Nh5 {[%clk 0:02:48]} 8. Bg5 {[%clk 0:02:59]}  f6 {[%clk 0:02:48]} 9. Be3 {[%clk 0:02:58]}  Bd6 {[%clk 0:02:45]} 10. g3 {[%clk 0:02:57]}  g6 {[%clk 0:02:44]} 11. Bg2 {[%clk 0:02:57]}  O-O {[%clk 0:02:44]} 12. O-O {[%clk 0:02:57]}  Ng7 {[%clk 0:02:41]} 13. Re1 {[%clk 0:02:42]}  e5 {[%clk 0:02:36]} 14. dxe5 {[%clk 0:02:39]}  fxe5 {[%clk 0:02:37]} 15. Bg5 {[%clk 0:02:39]}  Qb6 {[%clk 0:02:31]} 16. Nb3 {[%clk 0:02:37]}  Be6 {[%clk 0:02:25]} 17. Qe2 {[%clk 0:02:19]}  Rae8 {[%clk 0:02:22]} 18. Rad1 {[%clk 0:02:06]}  a5 {[%clk 0:02:19]} 19. Be3 {[%clk 0:02:04]}  Qc7 {[%clk 0:01:56]} 20. Qb5 {[%clk 0:02:04]}  Nf5 {[%clk 0:01:48]} 21. Bb6 {[%clk 0:02:03]}  Qe7 {[%clk 0:01:37]} 22. Nxa5 {[%clk 0:02:02]}  e4 {[%clk 0:01:27]} 23. Nd4 {[%clk 0:01:57]}  Nfxd4 {[%clk 0:01:24]} 24. cxd4 {[%clk 0:01:55]}  Qf7 {[%clk 0:00:51]} 25. Rf1 {[%clk 0:01:42]}  Nb4 {[%clk 0:00:42]} 26. Bc5 {[%clk 0:01:30]}  Bxc5 {[%clk 0:00:37]} 27. dxc5 {[%clk 0:01:29]}  Nd3 {[%clk 0:00:37]} 28. Rxd3 {[%clk 0:01:15]}  exd3 {[%clk 0:00:37]} 29. Qxd3 {[%clk 0:01:16]}  Qc7 {[%clk 0:00:28]} 30. Nb3 {[%clk 0:01:13]}  Rd8 {[%clk 0:00:20]} 31. Nd4 {[%clk 0:01:11]}  Bf5 {[%clk 0:00:16]} 32. Nxf5 {[%clk 0:01:10]}  Rxf5 {[%clk 0:00:17]} 33. b4 {[%clk 0:01:06]}  b6 {[%clk 0:00:17]} 34. Rc1 {[%clk 0:01:05]}  bxc5 {[%clk 0:00:15]} 35. Rxc5 {[%clk 0:01:06]}  Qf7 {[%clk 0:00:14]} 36. Be4 {[%clk 0:01:01]}  Rxf2 {[%clk 0:00:12]} 37. Bxd5 {[%clk 0:01:01]}  Rxd5 {[%clk 0:00:06]} 38. Rxd5 {[%clk 0:01:00]}  Rf1+ {[%clk 0:00:02]} 39. Qxf1 {[%clk 0:00:56]}  Qxd5 {[%clk 0:00:02]} 40. Qb1 {[%clk 0:00:50]}  Qd4+ {[%clk 0:00:01]} 41. Kg2 {[%clk 0:00:50]}  Qd2+ {[%clk 0:00:02]} 42. Kh3 {[%clk 0:00:50]}  Qh6+ {[%clk 0:00:02]} 43. Kg4 {[%clk 0:00:50]}  Qh5+ {[%clk 0:00:02]} 44. Kf4 {[%clk 0:00:49]}  Qxh2 {[%clk 0:00:01]} 45. Qb3+ {[%clk 0:00:48]}  Kg7 {[%clk 0:00:01]} 46. Qc3+ {[%clk 0:00:47]}  Kh6 {[%clk 0:00:02]} 47. Qe3 {[%clk 0:00:44]}  Qh3 {[%clk 0:00:03]} 48. Kf3+ {[%clk 0:00:43]}  Kg7 {[%clk 0:00:04]} 49. Qe7+ {[%clk 0:00:42]}  Kh6 {[%clk 0:00:04]} 50. Qh4+ {[%clk 0:00:43]}  Qxh4 {[%clk 0:00:03]} 51. gxh4 {[%clk 0:00:44]}  Kh5 {[%clk 0:00:04]} 52. Kg3 {[%clk 0:00:43]}  g5 {[%clk 0:00:02]} 53. hxg5 {[%clk 0:00:44]}  Kxg5 {[%clk 0:00:03]} 54. b5 {[%clk 0:00:43]}  Kf5 {[%clk 0:00:04]} 55. b6 {[%clk 0:00:44]}  Ke6 {[%clk 0:00:05]} 56. b7 {[%clk 0:00:44]} 1-0


[Site "https://www.chess.com"]

[Event "Titled Tuesday Blitz March 22 Early 2022"]
[White "Bodnar, Nikolay"]
[Black "Khamdamova, Afruza"]
[WhiteFideId "14106469"]
[BlackFideId "14210444"]
[WhiteElo "2296"]
[BlackElo "1660"]
[Result "1-0"]
[Round "07"]
[TimeControl "180+1"]
[Date "2022.03.22"]
[WhiteClock "0:00:40"]
[BlackClock "0:00:11"]

1. e4 {[%clk 0:02:59]}  e5 {[%clk 0:02:59]} 2. Nf3 {[%clk 0:02:59]}  Nf6 {[%clk 0:02:59]} 3. Nxe5 {[%clk 0:02:59]}  d6 {[%clk 0:02:59]} 4. Nf3 {[%clk 0:02:59]}  Nxe4 {[%clk 0:02:59]} 5. d4 {[%clk 0:03:00]}  d5 {[%clk 0:02:58]} 6. Bd3 {[%clk 0:03:00]}  Nc6 {[%clk 0:02:58]} 7. O-O {[%clk 0:02:56]}  Be7 {[%clk 0:02:58]} 8. Nbd2 {[%clk 0:02:51]}  Nd6 {[%clk 0:02:56]} 9. Re1 {[%clk 0:02:43]}  O-O {[%clk 0:02:53]} 10. Nf1 {[%clk 0:02:39]}  Bg4 {[%clk 0:02:43]} 11. c3 {[%clk 0:02:39]}  Re8 {[%clk 0:02:38]} 12. Qb3 {[%clk 0:02:16]}  Bxf3 {[%clk 0:02:34]} 13. gxf3 {[%clk 0:02:17]}  Bg5 {[%clk 0:01:53]} 14. Rxe8+ {[%clk 0:02:08]}  Nxe8 {[%clk 0:01:52]} 15. f4 {[%clk 0:02:07]}  Bh6 {[%clk 0:01:40]} 16. Qxb7 {[%clk 0:02:02]}  Na5 {[%clk 0:01:39]} 17. Qb5 {[%clk 0:01:54]}  c6 {[%clk 0:01:38]} 18. Qa4 {[%clk 0:01:52]}  Nd6 {[%clk 0:01:32]} 19. Ng3 {[%clk 0:01:45]}  Qc7 {[%clk 0:01:18]} 20. Qc2 {[%clk 0:01:45]}  g6 {[%clk 0:01:17]} 21. f5 {[%clk 0:01:42]}  Bxc1 {[%clk 0:01:14]} 22. Rxc1 {[%clk 0:01:41]}  Re8 {[%clk 0:01:09]} 23. b3 {[%clk 0:01:31]}  Kg7 {[%clk 0:00:53]} 24. Qd2 {[%clk 0:01:30]}  Qe7 {[%clk 0:00:51]} 25. Qf4 {[%clk 0:01:27]}  Nab7 {[%clk 0:00:45]} 26. h4 {[%clk 0:01:16]}  c5 {[%clk 0:00:43]} 27. dxc5 {[%clk 0:01:10]}  Ne4 {[%clk 0:00:36]} 28. Bxe4 {[%clk 0:01:06]}  dxe4 {[%clk 0:00:36]} 29. b4 {[%clk 0:01:04]}  Nd8 {[%clk 0:00:30]} 30. Re1 {[%clk 0:01:01]}  Qf6 {[%clk 0:00:23]} 31. Rxe4 {[%clk 0:00:48]}  Rxe4 {[%clk 0:00:19]} 32. Nxe4 {[%clk 0:00:46]}  Qc6 {[%clk 0:00:17]} 33. f6+ {[%clk 0:00:46]}  Kg8 {[%clk 0:00:17]} 34. Qd6 {[%clk 0:00:40]}  Qe8 {[%clk 0:00:14]} 35. Qe7 {[%clk 0:00:40]}  Qf8 {[%clk 0:00:11]} 1-0


[Site "https://www.chess.com"]